[Event "POL-ch Women MOKATE 2020"]
[Site "Ostrow Wielkopolski"]
[Date "2020.08.12"]
[Round "9.3"]
[White "Waszczuk, Patrycja"]
[Black "Sliwicka, Alicja"]
[Result "0-1"]
[ECO "A00"]
[WhiteElo "2321"]
[BlackElo "2317"]
[Annotator "ChessBase"]
[PlyCount "158"]
[EventDate "2020.08.04"]
[EventType "tourn"]
[EventCountry "POL"]
[SourceTitle "playchess.com"]
[Source "ChessBase"]
[SourceQuality "1"]
[TimeControl "40/5400+30:1800+30"]

1. g3 {[%emt 0:00:00]} g6 {[%emt 0:00:00]} 2. Bg2 {[%emt 0:00:00]} Bg7 {[%emt 0:00:00]} 3. e4 {[%emt 0:01:57]} c5 {[%emt 0:04:20]} 4. Ne2 {[%emt 0:00:24]} Nc6 {[%emt 0:00:27]} 5. Nbc3 {[%emt 0:02:10]} d6 {[%emt 0:02:06]} 6. d3 {[%emt 0:00:28]} a6 {[%emt 0:04:08]} 7. Be3 {[%emt 0:03:52]} Nd4 {[%emt 0:01:37]} 8. O-O {[%emt 0:04:38]} Rb8 {[%emt 0:02:14]} 9. f4 {[%emt 0:05:31]} b5 {[%emt 0:00:28]} 10. Bxd4 {[%emt 0:03:24]} cxd4 {[%emt 0:00:18]} 11. Nb1 {[%emt 0:00:25]} e6 {[%emt 0:02:19]} 12. Nd2 {[%emt 0:02:50]} Ne7 {[%emt 0:00:22]} 13. Nf3 {[%emt 0:00:51]} Qb6 {[%emt 0:00:32]} 14. Qe1 {[%emt 0:02:16]} O-O {[%emt 0:02:29]} 15. Qf2 {[%emt 0:00:38]} e5 {[%emt 0:01:47]} 16. c3 {[%emt 0:02:55]} dxc3 {[%emt 0:02:39]} 17. Qxb6 {[%emt 0:01:08]} Rxb6 {[%emt 0:00:04]} 18. bxc3 {[%emt 0:01:30]} f5 {[%emt 0:01:02]} 19. a4 {[%emt 0:07:07]} fxe4 {[%emt 0:01:45]} 20. dxe4 {[%emt 0:00:20]} Be6 {[%emt 0:00:45]} 21. axb5 {[%emt 0:02:07]} Bc4 {[%emt 0:01:16]} 22. Rf2 {[%emt 0:01:59]} axb5 {[%emt 0:01:30]} 23. fxe5 {[%emt 0:01:28]} dxe5 {[%emt 0:00:32]} 24. Nd2 {[%emt 0:06:59]} Be6 {[%emt 0:00:33]} 25. Rxf8+ {[%emt 0:01:12]} Bxf8 {[%emt 0:00:07]} 26. Nf3 {[%emt 0:01:49]} Nc6 {[%emt 0:00:23]} 27. Ra8 {[%emt 0:00:44]} Kg7 {[%emt 0:00:41]} 28. Kf2 {[%emt 0:01:16]} Bc5+ {[%emt 0:00:39]} 29. Ke1 {[%emt 0:00:15]} h6 {[%emt 0:00:17]} 30. Nc1 {[%emt 0:08:07]} b4 {[%emt 0:00:08]} 31. cxb4 {[%emt 0:01:47]} Bxb4+ {[%emt 0:00:07]} 32. Kd1 {[%emt 0:01:51]} g5 {[%emt 0:23:35]} 33. Bf1 {[%emt 0:07:26]} Bd6 {[%emt 0:01:55]} 34. Ra6 {[%emt 0:01:34]} Rxa6 35. Bxa6 {[%emt 0:00:02]} g4 {[%emt 0:04:56]} 36. Nd2 {[%emt 0:01:56]} Bc5 {[%emt 0:00:46]} 37. Ke1 {[%emt 0:07:22]} Nb4 {[%emt 0:01:35]} 38. Bc4 {[%emt 0:01:04]} Nc2+ {[%emt 0:00:34]} 39. Ke2 {[%emt 0:00:52]} Nd4+ {[%emt 0:01:40]} 40. Kd3 {[%emt 0:00:00]} Bxc4+ {[%emt 0:00:00]} 41. Kxc4 {[%emt 0:03:39]} Ba7 {[%emt 0:09:04]} 42. Kd3 {[%emt 0:09:16]} Kf6 {[%emt 0:00:37]} 43. Nf1 {[%emt 0:02:15]} Nf3 {[%emt 0:00:11]} 44. Ne2 {[%emt 0:03:06]} h5 {[%emt 0:00:16]} 45. Kc4 {[%emt 0:01:00]} Ke6 {[%emt 0:04:16]} 46. Kd3 {[%emt 0:00:45]} Kd6 {[%emt 0:01:02]} 47. Kc4 {[%emt 0:01:40]} Kc6 {[%emt 0:00:05]} 48. Kb4 {[%emt 0:01:24]} Ng5 {[%emt 0:01:08]} 49. Nd2 {[%emt 0:00:49]} Bc5+ {[%emt 0:00:50]} 50. Kc4 {[%emt 0:00:58]} Be3 {[%emt 0:02:07]} 51. Nf1 {[%emt 0:00:52]} Bf2 {[%emt 0:00:04]} 52. Kd3 {[%emt 0:00:51]} Kc5 {[%emt 0:02:29]} 53. Nc1 {[%emt 0:02:30]} Nf3 {[%emt 0:04:25]} 54. Ne2 {[%emt 0:05:53]} Ne1+ {[%emt 0:04:07]} 55. Kc3 {[%emt 0:01:39]} Bd4+ {[%emt 0:10:29]} 56. Kd2 {[%emt 0:02:12]} Nf3+ {[%emt 0:00:55]} 57. Kd3 {[%emt 0:00:10]} Bf2 {[%emt 0:02:52]} 58. Kc3 {[%emt 0:01:41]} Be1+ {[%emt 0:00:59]} 59. Kd3 {[%emt 0:00:19]} Ba5 {[%emt 0:00:50]} 60. Nc1 {[%emt 0:02:41]} Kb5 {[%emt 0:03:05]} 61. Ne2 {[%emt 0:05:44]} Ne1+ {[%emt 0:00:28]} 62. Ke3 {[%emt 0:00:01]} Kc4 {[%emt 0:00:59]} 63. Nc1 {[%emt 0:02:37]} Nf3 {[%emt 0:02:02]} 64. Ke2 {[%emt 0:02:57]} Bb6 {[%emt 0:00:53]} 65. Nd3 {[%emt 0:02:21]} Kd4 {[%emt 0:02:46]} 66. Nf2 {[%emt 0:00:50]} Ng1+ {[%emt 0:02:11]} 67. Kd2 {[%emt 0:01:21]} Ba5+ {[%emt 0:00:09]} 68. Kd1 {[%emt 0:00:29]} Nf3 {[%emt 0:00:19]} 69. Ke2 {[%emt 0:01:01]} Ng1+ {[%emt 0:03:02]} 70. Kd1 {[%emt 0:00:06]} Bb4 {[%emt 0:00:28]} 71. h3 {[%emt 0:01:21]} Nxh3 {[%emt 0:03:00]} 72. Nxh3 {[%emt 0:00:15]} gxh3 {[%emt 0:00:05]} 73. Ke2 {[%emt 0:00:13]} Kxe4 {[%emt 0:00:35]} 74. Nh2 {[%emt 0:00:03]} Bc5 {[%emt 0:00:55]} 75. Nf3 {[%emt 0:00:35]} Kf5 {[%emt 0:01:03]} 76. Nh2 {[%emt 0:00:45]} Bg1 {[%emt 0:00:26]} 77. Nf3 {[%emt 0:00:03]} h2 {[%emt 0:00:24]} 78. Nxh2 {[%emt 0:00:19]} Bxh2 {[%emt 0:00:04]} 79. Kf3 {[%emt 0:00:03]} Bg1 {[%emt 0:00:19]} 0-1

[Event "POL-ch Women MOKATE 2020"]
[Site "Ostrow Wielkopolski"]
[Date "2020.08.12"]
[Round "9.5"]
[White "Socko, Monika"]
[Black "Kulon, Klaudia"]
[Result "1/2-1/2"]
[ECO "A50"]
[WhiteElo "2428"]
[BlackElo "2336"]
[Annotator "ChessBase"]
[PlyCount "96"]
[EventDate "2020.08.04"]
[EventType "tourn"]
[EventCountry "POL"]
[SourceTitle "playchess.com"]
[Source "ChessBase"]
[SourceQuality "1"]
[TimeControl "40/5400+30:1800+30"]

1. d4 {[%emt 0:00:00]} Nf6 {[%emt 0:00:00]} 2. c4 {[%emt 0:00:00]} Nc6 {[%emt 0:00:00]} 3. Nf3 {[%emt 0:00:18]} e6 {[%emt 0:00:00]} 4. a3 {[%emt 0:00:04]} d6 {[%emt 0:00:18]} 5. Nc3 {[%emt 0:00:34]} g6 {[%emt 0:00:21]} 6. e4 {[%emt 0:01:08]} Bg7 {[%emt 0:00:06]} 7. Be2 {[%emt 0:00:43]} O-O {[%emt 0:00:25]} 8. O-O {[%emt 0:00:34]} Re8 {[%emt 0:00:30]} 9. Be3 {[%emt 0:08:14]} e5 {[%emt 0:01:04]} 10. dxe5 {[%emt 0:10:51]} dxe5 {[%emt 0:01:04]} 11. Qxd8 {[%emt 0:01:32]} Nxd8 {[%emt 0:01:02]} 12. h3 {[%emt 0:12:10]} Ne6 {[%emt 0:04:11]} 13. Rfd1 {[%emt 0:06:31]} c5 {[%emt 0:12:21]} 14. Bd3 {[%emt 0:06:04]} Nd4 {[%emt 0:05:48]} 15. Bxd4 {[%emt 0:03:50]} cxd4 {[%emt 0:00:06]} 16. Nb5 {[%emt 0:01:10]} Re7 {[%emt 0:02:11]} 17. c5 {[%emt 0:00:42]} Ne8 {[%emt 0:01:31]} 18. Rac1 {[%emt 0:01:14]} Be6 {[%emt 0:04:34]} 19. Bc4 {[%emt 0:05:39]} Bxc4 {[%emt 0:12:04]} 20. Rxc4 {[%emt 0:01:18]} a6 {[%emt 0:00:22]} 21. Nd6 {[%emt 0:00:05]} Nxd6 {[%emt 0:00:27]} 22. cxd6 {[%emt 0:00:05]} Rd7 {[%emt 0:00:05]} 23. Rc7 {[%emt 0:05:26]} Rxc7 {[%emt 0:02:57]} 24. dxc7 {[%emt 0:00:02]} Rc8 {[%emt 0:00:06]} 25. Rc1 {[%emt 0:00:38]} f6 {[%emt 0:00:11]} 26. g4 {[%emt 0:02:50]} h6 {[%emt 0:03:48]} 27. Nd2 {[%emt 0:03:35]} Kf8 {[%emt 0:04:59]} 28. Nb3 {[%emt 0:03:06]} Ke7 {[%emt 0:13:25]} 29. Na5 {[%emt 0:01:36]} d3 {[%emt 0:07:35]} 30. Rd1 {[%emt 0:05:51]} Rxc7 {[%emt 0:00:40]} 31. Rxd3 {[%emt 0:00:05]} b6 {[%emt 0:00:18]} 32. Nb3 {[%emt 0:00:04]} h5 {[%emt 0:01:07]} 33. gxh5 {[%emt 0:03:18]} gxh5 {[%emt 0:00:07]} 34. Nd2 {[%emt 0:00:42]} Bh6 {[%emt 0:01:07]} 35. Nf3 {[%emt 0:04:21]} f5 {[%emt 0:01:43]} 36. Rd5 {[%emt 0:02:50]} Rc5 {[%emt 0:01:40]} 37. Rxc5 {[%emt 0:09:47]} bxc5 {[%emt 0:00:21]} 38. Nh4 {[%emt 0:00:03]} Bc1 {[%emt 0:03:12]} 39. Nxf5+ {[%emt 0:00:03]} Kf6 {[%emt 0:02:53]} 40. b3 {[%emt 0:00:00]} Bxa3 {[%emt 0:00:00]} 41. h4 {[%emt 0:04:04]} c4 {[%emt 0:09:57]} 42. bxc4 {[%emt 0:00:04]} Bc5 {[%emt 0:00:03]} 43. Kf1 {[%emt 0:01:22]} a5 {[%emt 0:00:06]} 44. Ke2 {[%emt 0:00:34]} a4 {[%emt 0:00:09]} 45. Kd3 {[%emt 0:00:11]} Bxf2 {[%emt 0:00:18]} 46. Kc3 {[%emt 0:00:10]} Bc5 {[%emt 0:00:05]} 47. Ng3 {[%emt 0:01:15]} Kg6 {[%emt 0:00:07]} 48. Nf5 {[%emt 0:00:09]} Kf6 {[%emt 0:00:04]} 1/2-1/2

[Event "POL-ch Women MOKATE 2020"]
[Site "Ostrow Wielkopolski"]
[Date "2020.08.12"]
[Round "10"]
[White "Kulon, Klaudia"]
[Black "Cyfka, Karina"]
[Result "0-1"]
[ECO "A45"]
[WhiteElo "2336"]
[BlackElo "2411"]
[Annotator "ChessBase"]
[PlyCount "134"]
[EventDate "2020.08.04"]
[EventType "tourn"]
[EventCountry "POL"]
[SourceTitle "playchess.com"]
[Source "ChessBase"]
[SourceQuality "1"]
[TimeControl "40/5400+30:1800+30"]

1. d4 {[%emt 1:15:11]} Nf6 {[%emt 1:15:12]} 2. Bg5 {[%emt 0:00:22]} d5 {[%emt 0:00:33]} 3. Bxf6 {[%emt 0:00:23]} exf6 {[%emt 0:00:25]} 4. e3 {[%emt 0:00:25]} c5 {[%emt 0:00:26]} 5. dxc5 {[%emt 0:00:52]} Bxc5 {[%emt 0:00:33]} 6. Nf3 {[%emt 0:00:35]} O-O {[%emt 0:00:36]} 7. c3 {[%emt 0:00:49]} Nc6 {[%emt 0:01:46]} 8. Be2 {[%emt 0:00:28]} Be6 {[%emt 0:00:48]} 9. O-O {[%emt 0:00:37]} Qc7 {[%emt 0:00:57]} 10. Nbd2 {[%emt 0:00:42]} Rad8 {[%emt 0:00:51]} 11. h3 {[%emt 0:01:28]} Rfe8 {[%emt 0:00:51]} 12. a4 {[%emt 0:01:52]} a6 {[%emt 0:00:44]} 13. Rc1 {[%emt 0:01:02]} Ba7 {[%emt 0:00:34]} 14. b4 {[%emt 0:01:10]} Bb8 {[%emt 0:02:08]} 15. Qc2 {[%emt 0:01:20]} Ne5 {[%emt 0:01:09]} 16. Rfd1 {[%emt 0:00:45]} Nc4 {[%emt 0:02:23]} 17. Nb3 {[%emt 0:01:29]} g6 {[%emt 0:03:11]} 18. Nbd4 {[%emt 0:00:28]} Bd7 {[%emt 0:00:50]} 19. a5 {[%emt 0:01:07]} f5 {[%emt 0:00:39]} 20. Bxc4 {[%emt 0:02:16]} dxc4 {[%emt 0:00:35]} 21. g3 {[%emt 0:00:25]} Ba7 {[%emt 0:02:17]} 22. h4 {[%emt 0:00:27]} Re4 {[%emt 0:00:46]} 23. Rd2 {[%emt 0:01:14]} Ree8 {[%emt 0:00:43]} 24. Rcd1 {[%emt 0:00:21]} Kg7 {[%emt 0:00:54]} 25. Qa2 {[%emt 0:01:19]} h5 {[%emt 0:00:29]} 26. Ne2 {[%emt 0:00:51]} Bb5 {[%emt 0:01:19]} 27. Nf4 {[%emt 0:00:45]} Rxd2 {[%emt 0:00:37]} 28. Qxd2 {[%emt 0:00:49]} Bc6 {[%emt 0:00:45]} 29. Ng5 {[%emt 0:00:36]} Qe5 {[%emt 0:00:53]} 30. Qd6 {[%emt 0:02:50]} Bb8 {[%emt 0:00:38]} 31. Qd4 {[%emt 0:00:47]} Qxd4 {[%emt 0:00:42]} 32. Rxd4 {[%emt 0:00:43]} Bb5 {[%emt 0:00:29]} 33. Nf3 {[%emt 0:00:30]} Ba7 {[%emt 0:00:27]} 34. Rd1 {[%emt 0:00:38]} Bc6 {[%emt 0:00:25]} 35. Nd4 {[%emt 0:00:53]} Be4 {[%emt 0:00:32]} 36. Rd2 {[%emt 0:00:41]} Kf6 {[%emt 0:00:33]} 37. Kf1 {[%emt 0:00:35]} Rd8 {[%emt 0:00:29]} 38. Ke1 {[%emt 0:00:22]} Bxd4 {[%emt 0:00:29]} 39. Rxd4 {[%emt 0:00:28]} Rxd4 {[%emt 0:00:26]} 40. exd4 {[%emt 0:00:35]} Ke7 {[%emt 0:00:33]} 41. Kd2 {[%emt 0:30:28]} Kd6 {[%emt 0:30:24]} 42. Ke3 {[%emt 0:00:20]} Bc6 {[%emt 0:00:36]} 43. Nh3 {[%emt 0:00:30]} Bg2 {[%emt 0:00:36]} 44. Ng1 {[%emt 0:00:46]} Bc6 {[%emt 0:00:23]} 45. Kf4 {[%emt 0:00:25]} Ba4 {[%emt 0:00:34]} 46. Nf3 {[%emt 0:00:27]} Bc6 {[%emt 0:00:33]} 47. Ne5 {[%emt 0:00:27]} Bd5 {[%emt 0:00:21]} 48. Kg5 {[%emt 0:00:50]} Ke6 {[%emt 0:00:29]} 49. Kh6 {[%emt 0:00:21]} Kf6 {[%emt 0:00:40]} 50. Kh7 {[%emt 0:00:27]} f4 {[%emt 0:00:28]} 51. Kh6 {[%emt 0:00:22]} fxg3 {[%emt 0:00:27]} 52. fxg3 {[%emt 0:00:21]} Be6 {[%emt 0:00:32]} 53. Kh7 {[%emt 0:00:46]} Bd5 {[%emt 0:00:24]} 54. Kg8 {[%emt 0:00:24]} Kf5 {[%emt 0:00:28]} 55. Kg7 {[%emt 0:00:28]} Ke4 {[%emt 0:00:21]} 56. Kf6 {[%emt 0:00:31]} Ke3 {[%emt 0:00:23]} 57. Nxf7 {[%emt 0:00:40]} Kd3 {[%emt 0:00:31]} 58. Nh8 {[%emt 0:00:30]} Kxc3 {[%emt 0:00:26]} 59. Ke5 {[%emt 0:00:20]} Kxb4 {[%emt 0:00:36]} 60. Kxd5 {[%emt 0:00:52]} c3 {[%emt 0:00:22]} 61. Nxg6 {[%emt 0:00:21]} c2 {[%emt 0:00:32]} 62. Ne5 {[%emt 0:00:23]} Kc3 {[%emt 0:00:27]} 63. Ke6 {[%emt 0:00:30]} c1=Q {[%emt 0:00:23]} 64. d5 {[%emt 0:00:24]} Qh6+ {[%emt 0:00:33]} 65. Ke7 {[%emt 0:00:27]} Kd4 {[%emt 0:00:34]} 66. Nf7 {[%emt 0:00:28]} Qe3+ {[%emt 0:00:29]} 67. Kf6 {[%emt 0:00:41]} Kxd5 {[%emt 0:00:25]} 0-1

[Event "POL-ch Women MOKATE 2020"]
[Site "Ostrow Wielkopolski"]
[Date "2020.08.12"]
[Round "11"]
[White "Cyfka, Karina"]
[Black "Kulon, Klaudia"]
[Result "1-0"]
[ECO "A50"]
[WhiteElo "2411"]
[BlackElo "2336"]
[Annotator "ChessBase"]
[PlyCount "103"]
[EventDate "2020.08.04"]
[EventType "tourn"]
[EventCountry "POL"]
[SourceTitle "playchess.com"]
[Source "ChessBase"]
[SourceQuality "1"]
[TimeControl "40/5400+30:1800+30"]

1. d4 {[%emt 1:15:12]} Nf6 {[%emt 1:15:15]} 2. c4 {[%emt 0:00:24]} Nc6 {[%emt 0:00:24]} 3. Nf3 {[%emt 0:00:23]} e6 {[%emt 0:00:21]} 4. a3 {[%emt 0:00:21]} d6 {[%emt 0:00:24]} 5. Nc3 {[%emt 0:00:22]} g6 {[%emt 0:00:21]} 6. e4 {[%emt 0:00:22]} Bg7 {[%emt 0:00:21]} 7. Be3 {[%emt 0:00:27]} O-O {[%emt 0:00:30]} 8. h3 {[%emt 0:00:22]} e5 {[%emt 0:01:13]} 9. d5 {[%emt 0:02:06]} Nd4 {[%emt 0:00:21]} 10. Nxd4 {[%emt 0:03:31]} exd4 {[%emt 0:00:21]} 11. Bxd4 {[%emt 0:00:22]} Nxe4 {[%emt 0:02:26]} 12. Bxg7 {[%emt 0:01:29]} Re8 {[%emt 0:00:24]} 13. Be2 {[%emt 0:02:32]} Kxg7 {[%emt 0:00:29]} 14. Qd4+ {[%emt 0:01:22]} Qf6 {[%emt 0:00:21]} 15. Qxf6+ {[%emt 0:00:21]} Kxf6 {[%emt 0:00:21]} 16. Nxe4+ {[%emt 0:00:51]} Rxe4 {[%emt 0:00:21]} 17. Kd2 {[%emt 0:00:22]} Bf5 {[%emt 0:00:43]} 18. g4 {[%emt 0:01:45]} Bd7 {[%emt 0:00:21]} 19. f3 {[%emt 0:01:09]} Re7 {[%emt 0:00:39]} 20. h4 {[%emt 0:01:21]} Rae8 {[%emt 0:00:42]} 21. Bd3 {[%emt 0:00:55]} h6 {[%emt 0:00:40]} 22. Rhg1 {[%emt 0:00:56]} Ke5 {[%emt 0:02:16]} 23. Ke3 {[%emt 0:01:02]} f5 {[%emt 0:03:00]} 24. g5 {[%emt 0:01:09]} hxg5 {[%emt 0:00:21]} 25. hxg5 {[%emt 0:00:40]} f4+ {[%emt 0:00:21]} 26. Kd2 {[%emt 0:02:32]} Kd4 {[%emt 0:00:22]} 27. Rg2 {[%emt 0:00:43]} Re5 {[%emt 0:00:59]} 28. Rh1 {[%emt 0:00:43]} b5 {[%emt 0:03:41]} 29. Rh4 {[%emt 0:00:33]} Rf8 {[%emt 0:01:19]} 30. cxb5 {[%emt 0:00:23]} Rxd5 {[%emt 0:01:24]} 31. Bxg6 {[%emt 0:00:34]} Rxb5 {[%emt 0:02:11]} 32. b4 {[%emt 0:00:29]} a5 {[%emt 0:00:21]} 33. Bd3 {[%emt 0:00:33]} Rbb8 {[%emt 0:00:49]} 34. g6 {[%emt 0:00:26]} axb4 {[%emt 0:01:11]} 35. g7 {[%emt 0:00:22]} Rg8 {[%emt 0:00:20]} 36. Rxf4+ {[%emt 0:00:27]} Ke5 {[%emt 0:00:21]} 37. Re4+ {[%emt 0:00:43]} Kf6 {[%emt 0:00:22]} 38. Rf4+ {[%emt 0:00:23]} Ke7 {[%emt 0:00:59]} 39. Re4+ {[%emt 0:00:32]} Be6 {[%emt 0:01:19]} 40. Rg6 {[%emt 0:00:37]} bxa3 {[%emt 0:00:52]} 41. Rgxe6+ {[%emt 0:30:31]} Kd7 {[%emt 0:30:25]} 42. Re7+ {[%emt 0:00:23]} Kc6 {[%emt 0:00:24]} 43. Bc4 {[%emt 0:00:28]} d5 {[%emt 0:00:53]} 44. R4e6+ {[%emt 0:00:29]} Kc5 {[%emt 0:00:21]} 45. Rxc7+ {[%emt 0:00:33]} Kd4 {[%emt 0:00:22]} 46. Ba2 {[%emt 0:00:29]} Rb2+ {[%emt 0:00:32]} 47. Rc2 {[%emt 0:00:22]} Rxg7 {[%emt 0:00:22]} 48. Rxb2 {[%emt 0:00:39]} axb2 {[%emt 0:00:21]} 49. Kc2 {[%emt 0:00:24]} Rg2+ {[%emt 0:00:23]} 50. Kb1 {[%emt 0:00:26]} Kd3 {[%emt 0:00:52]} 51. Bxd5 {[%emt 0:00:33]} Kc3 {[%emt 0:00:21]} 52. Rc6+ 1-0